bitfinex-derivatives/quotes_SOLF0:USTF0_20250820
["timestamp","ask_amount","ask_price","bid_price","bid_amount"]
[1755673780173,8.385,181.32,181.3,0.03642409]
[1755673781477,5.5146,181.33,181.3,0.03642409]
[1755673781775,2.87,181.35,181.3,0.03642409]
[1755673781977,2.87,181.35,181.32,3.04]
[1755673782277,5.5144,181.34,181.32,3.04]
[1755673783668,370.66,181.4,181.31,7.07203226]
[1755673783669,5.5137,181.36,181.31,7.07203226]
[1755673783872,2.87,181.38,181.33,1.55693226]
[1755673784068,2.87,181.38,181.35,3.04]
[1755673784481,2.87,181.42,181.34,3.08153243]
[1755673784879,5.5129,181.39,181.35,3.04]
[1755673785277,2.87,181.42,181.36,3.04]
[1755673785983,5.5129,181.39,181.34,0.04153243]
[1755673786378,5.5129,181.39,181.35,3.04]
[1755673786580,5.5129,181.39,181.36,3.04]
[1755673786782,5.5129,181.39,181.34,0.04153243]
[1755673786977,5.5129,181.39,181.37,3.04]
[1755673787482,5.5124,181.41,181.38,3.04]
[1755673787682,2.43179464,181.48,181.35,4.58490551]
[1755673787980,2.87,181.42,181.33,7.62490551]
[1755673788185,5.5133,181.38,181.37,0.0369135]
[1755673788981,8.3833,181.38,181.37,0.0369135]
[1755673792684,8.3833,181.38,181.37,1.35e-05]
[1755673800298,5.5155,181.3,181.29,7.52490551]
[1755673800598,2.97,181.33,181.26,7.52490551]
[1755673800899,5.5157,181.3,181.27,2.94]
[1755673801192,135.3,181.36,181.28,2.94]
[1755673801790,135.3,181.36,181.29,7.52490551]
[1755673802394,135.3,181.36,181.3,2.94]
[1755673803098,5.5152,181.31,181.3,2.94]
[1755673804497,5.515,181.32,181.29,2.94]
[1755673805195,5.5152,181.31,181.29,2.94]
[1755673805398,5.5152,181.31,181.3,2.94]
[1755673806200,5.5149,181.32,181.3,2.94]
[1755673806400,5.5149,181.32,181.31,2.94]
[1755673807596,370.54,181.43,181.3,2.94]
[1755673807597,372.97179464,181.43,181.3,2.94]
[1755673807797,138.27,181.42,181.31,4.58490551]
[1755673808002,138.27,181.42,181.32,2.94]
[1755673808305,138.27,181.42,181.31,4.58490551]
[1755673808306,5.5141,181.35,181.31,4.58490551]
[1755673808497,5.5141,181.35,181.31,10.10000551]
[1755673808803,5.5141,181.35,181.34,2.94]
[1755673809005,2.97,181.38,181.31,7.52490551]
[1755673809493,5.514,181.35,181.32,2.94]
[1755673809693,5.514,181.35,181.31,10.09990551]
[1755673810007,5.514,181.35,181.34,2.94]
[1755673810198,5.5137,181.36,181.31,10.09990551]
[1755673810505,5.5137,181.36,181.35,2.94]
[1755673811002,5.5134,181.37,181.33,4.58490551]
[1755673811206,138.27,181.42,181.36,2.94]
[1755673811695,5.5128,181.39,181.36,2.94]
[1755673811898,5.5128,181.39,181.37,2.94]
[1755673812102,5.5128,181.39,181.36,4.58490551]
[1755673812304,5.5128,181.39,181.38,2.94]
[1755673812499,138.27,181.42,181.38,2.94]
[1755673812703,138.27,181.42,181.39,2.94]
[1755673813102,5.5123,181.41,181.39,2.94]
[1755673813504,135.3,181.42,181.39,2.94]
[1755673814514,5.5121,181.41,181.37,2.94]
[1755673814707,5.5121,181.41,181.39,2.94]
[1755673817412,5.5125,181.4,181.37,2.94]
[1755673817620,2.97,181.41,181.35,4.58490551]
[1755673817810,2.97,181.41,181.34,4.58490551]
[1755673818011,5.513,181.39,181.34,4.58490551]
[1755673818216,2.97,181.41,181.34,4.58490551]
[1755673818520,5.5131,181.38,181.34,7.52490551]
[1755673818706,5.5131,181.38,181.35,2.94]
[1755673819217,5.5131,181.38,181.36,2.94]
[1755673819514,5.5133,181.37,181.36,2.94]
[1755673819714,2.97,181.41,181.36,2.94]
[1755673819915,135.3,181.42,181.36,2.94]
[1755673820111,2.97,181.39,181.36,2.94]
[1755673820918,135.3,181.42,181.34,4.58490551]
[1755673821118,2.97,181.39,181.34,4.58490551]
[1755673821418,5.5131,181.38,181.35,2.94]
[1755673823019,8.4831,181.38,181.35,2.94]
[1755673823315,135.3,181.42,181.34,4.58490551]
[1755673823616,2.97,181.41,181.34,4.58490551]
[1755673823918,5.5138,181.36,181.33,2.94]
[1755673825517,5.5138,181.36,181.33,7.52490551]
[1755673826325,8.4841,181.35,181.32,4.58490551]
[1755673826622,137.73179464,181.42,181.31,4.58490551]
[1755673826623,2.97,181.41,181.31,4.58490551]
[1755673826823,8.4849,181.32,181.3,4.58490551]
[1755673827020,2.97,181.38,181.3,4.58490551]
[1755673827217,2.97,181.38,181.29,2.94]
[1755673828418,5.5152,181.31,181.29,2.94]
[1755673829021,5.515,181.32,181.29,3.13]
[1755673829320,2.97,181.39,181.29,7.71490551]
[1755673829519,2.97,181.39,181.3,4.58490551]
[1755673829822,2.97,181.39,181.31,4.58490551]
[1755673830123,2.97,181.39,181.31,5.515]
[1755673830624,2.97,181.39,181.32,5.5148]
[1755673830921,2.97,181.39,181.32,4.58490551]
[1755673831120,2.97,181.39,181.33,4.58490551]
[1755673831320,135.22,181.41,181.33,4.58490551]
[1755673831525,135.22,181.41,181.34,7.71490551]
[1755673832020,135.22,181.41,181.34,3.13]
[1755673832415,5.5128,181.39,181.34,5.5142]
[1755673832624,5.5128,181.39,181.36,3.13]
[1755673833619,5.5128,181.39,181.37,3.13]
[1755673835224,2.97,181.37,181.34,4.58490551]
[1755673835621,5.5139,181.36,181.33,4.58490551]
[1755673835827,5.5139,181.36,181.34,3.13]
[1755673836415,5.5134,181.37,181.34,3.13]
[1755673837222,5.5131,181.38,181.35,3.13]
[1755673837422,2.97,181.4,181.35,3.13]
[1755673837622,2.97,181.4,181.36,3.13]
[1755673837824,84.49773482,181.45,181.38,3.13]
[1755673838025,2.97,181.44,181.38,3.13]
[1755673839018,5.5121,181.42,181.39,3.13]
[1755673840426,2.97,181.44,181.38,7.71490551]
[1755673840823,2.97,181.44,181.38,10.14670015]
[1755673841124,5.5115,181.43,181.39,3.13]
[1755673841330,2.97,181.45,181.38,4.58490551]
[1755673841529,2.97,181.45,181.37,4.58490551]
[1755673841731,2.97,181.45,181.36,7.71490551]
[1755673842937,5.5126,181.4,181.37,3.13]
[1755673843937,5.5126,181.4,181.38,3.13]
[1755673844437,5.5122,181.41,181.38,3.13]
[1755673844636,2.97,181.42,181.38,3.13]
[1755673844936,5.5117,181.43,181.39,3.13]
[1755673845135,5.5117,181.43,181.35,8.57204882]
[1755673845136,5.5117,181.43,181.4,3.13]
[1755673845535,5.5119,181.42,181.4,3.13]
[1755673846240,5.5119,181.42,181.39,3.13]
[1755673846437,5.5119,181.42,181.38,4.58490551]
[1755673846633,5.5119,181.42,181.39,3.13]
[1755673847536,135.2,181.46,181.39,3.13]
[1755673847943,135.2,181.46,181.39,7.71490551]
[1755673848147,2.97,181.53,181.4,10.14670015]
[1755673848343,2.97,181.51,181.41,7.71490551]
[1755673848539,2.43179464,181.51,181.39,4.58490551]
[1755673848844,2.97,181.44,181.4,3.13]
[1755673850345,5.5116,181.43,181.4,3.13]
[1755673850542,2.97,181.44,181.4,3.13]
[1755673850742,2.97,181.5,181.4,3.13]
[1755673852244,5.5113,181.44,181.39,10.09740551]
[1755673852445,5.5113,181.44,181.41,3.13]
[1755673852645,2.97,181.46,181.41,3.13]
[1755673852849,8.4807,181.46,181.4,4.58490551]
[1755673853048,8.4807,181.46,181.43,3.13]
[1755673853238,5.5104,181.47,181.43,3.13]
[1755673853441,2.97,181.49,181.42,3.13]
[1755673854245,5.5107,181.46,181.42,8.6416]
[1755673854948,2.97,181.47,181.43,3.13]
[1755673855150,135.18,181.52,181.41,10.09690551]
[1755673855450,2.97,181.51,181.41,10.09690551]
[1755673855742,2.97,181.51,181.41,4.58490551]
[1755673855945,2.43179464,181.5,181.38,4.58490551]
[1755673856147,2.97,181.42,181.38,7.71490551]
[1755673856652,2.97,181.42,181.38,3.13]
[1755673857251,2.97,181.42,181.37,10.09800551]
[1755673857447,2.97,181.49,181.37,4.58490551]
[1755673857650,2.97,181.49,181.38,7.71490551]
[1755673859248,5.5116,181.43,181.39,5.5125]
[1755673859449,5.5116,181.43,181.4,3.08]
[1755673859948,5.5116,181.43,181.4,5.5124]
[1755673860253,5.5113,181.44,181.42,3.08]
[1755673860450,2.94,181.44,181.38,7.01670015]
[1755673860750,5.512,181.42,181.38,12.52960015]
[1755673860947,5.512,181.42,181.4,3.08]
[1755673861550,5.5121,181.41,181.38,7.01670015]
[1755673861850,2.94,181.44,181.39,3.08]
[1755673862050,2.94,181.43,181.39,3.08]
[1755673862449,2.94,181.43,181.38,12.52970015]
[1755673862648,2.94,181.43,181.39,3.08]
[1755673862953,2.94,181.49,181.39,3.08]
[1755673863149,2.94,181.49,181.36,4.58490551]
[1755673863952,2.94,181.49,181.36,10.09830551]
[1755673864249,2.94,181.49,181.37,7.66490551]
[1755673864450,2.94,181.49,181.37,3.08]
[1755673864654,5.5125,181.4,181.37,8.5933]
[1755673864854,2.94,181.43,181.38,3.08]
[1755673865052,2.94,181.49,181.38,3.08]
[1755673865549,5.5125,181.4,181.38,3.08]
[1755673865756,2.94,181.43,181.32,4.58490551]
[1755673866051,2.94,181.39,181.33,3.08]
[1755673866253,2.94,181.38,181.37,0.03484215]
[1755673866455,8.453,181.38,181.37,0.03484215]
[1755673866644,8.453,181.38,181.37,4.215e-05]
[1755673866851,2.94,181.37,181.28,4.58490551]
[1755673867051,5.5155,181.3,181.28,4.58490551]
[1755673867253,2.94,181.34,181.28,7.66490551]
[1755673867452,135.14,181.41,181.28,7.66490551]
[1755673867453,2.94,181.39,181.29,7.66490551]
[1755673867652,5.5143,181.34,181.3,10.10030551]
[1755673867852,2.94,181.39,181.29,4.58490551]
[1755673868052,0.04152604,181.34,181.32,3.08]
[1755673868249,2.98152604,181.34,181.29,7.66490551]
[1755673868450,2.94,181.34,181.3,3.08]
[1755673868959,5.5149,181.32,181.3,3.08]
[1755673869853,5.55133611,181.33,181.3,3.08]
[1755673870249,0.03673611,181.33,181.3,5.5154]
[1755673870655,0.03673611,181.33,181.32,3.08]
[1755673871852,2.94,181.41,181.32,3.64]
[1755673872058,5.5119,181.42,181.36,8.5934]
[1755673872259,2.94,181.45,181.36,3.08]
[1755673872454,2.94,181.45,181.36,8.5934]
[1755673872655,2.94,181.45,181.37,3.08]
[1755673872958,2.94,181.45,181.39,3.08]
[1755673873259,5.5113,181.44,181.38,5.51179464]
[1755673874055,5.5113,181.44,181.38,11.02479464]
[1755673874453,5.5116,181.43,181.38,7.94479464]
[1755673874759,5.5116,181.43,181.39,3.08]
[1755673874961,5.5123,181.41,181.37,4.57162747]
[1755673875260,8.4523,181.41,181.36,7.65162747]
[1755673875461,8.4527,181.4,181.36,7.65162747]
[1755673875656,5.5127,181.4,181.36,3.08]
[1755673876051,8.4527,181.4,181.36,3.08]
[1755673876562,2.94,181.39,181.35,10.08342211]
[1755673876763,5.5127,181.4,181.36,3.08]
[1755673878166,2.94,181.42,181.36,3.08]
[1755673878167,5.5122,181.41,181.36,3.08]
[1755673878369,8.4522,181.41,181.36,3.08]
[1755673878870,5.5122,181.41,181.36,3.08]
[1755673879169,2.94,181.46,181.34,4.57162747]
[1755673880471,2.43179464,181.47,181.35,3.08]
[1755673880472,8.453,181.39,181.35,3.08]
[1755673881378,2.94,181.38,181.33,4.57162747]
[1755673881570,2.94,181.43,181.32,4.57162747]
[1755673882578,2.94,181.43,181.31,7.65162747]
[1755673883182,5.5142,181.35,181.31,13.16682747]
[1755673883582,5.5142,181.35,181.31,10.08682747]
[1755673883778,5.5143,181.34,181.31,4.57162747]
[1755673884080,2.94,181.34,181.3,4.57162747]
[1755673884379,2.94,181.34,181.3,7.65162747]
[1755673885174,2.94,181.34,181.3,4.57162747]
[1755673885375,2.94,181.4,181.31,3.08]
[1755673885780,5.5141,181.35,181.31,8.595]
[1755673885984,5.5141,181.35,181.32,3.08]
[1755673888376,2.84,181.37,181.3,7.45162747]
[1755673889186,5.5146,181.33,181.3,7.45162747]
[1755673890580,5.515,181.32,181.3,7.45162747]
[1755673890784,5.515,181.32,181.29,4.57162747]
[1755673890989,5.515,181.32,181.29,7.45162747]
[1755673891485,5.5152,181.31,181.29,2.88]
[1755673891875,5.5152,181.31,181.27,4.57162747]
[1755673892079,2.84,181.35,181.28,2.88]
[1755673892686,5.515,181.32,181.29,2.88]
[1755673892986,5.515,181.32,181.27,10.08792747]
[1755673893175,5.515,181.32,181.3,2.88]
[1755673895388,2.84,181.35,181.28,4.57162747]
[1755673895585,2.84,181.35,181.29,2.88]
[1755673895981,2.84,181.43,181.29,9.88342211]
[1755673896191,2.84,181.43,181.3,2.88]
[1755673896387,2.84,181.43,181.31,2.88]
[1755673896683,5.5133,181.38,181.32,5.5148]
[1755673896890,5.5133,181.38,181.31,4.57162747]
[1755673897088,5.5133,181.38,181.32,2.88]
[1755673897289,5.5133,181.38,181.32,5.31179464]
[1755673897490,5.5134,181.37,181.33,2.88]
[1755673897790,2.84,181.36,181.33,2.88]
[1755673898084,8.3531,181.38,181.34,2.88]
[1755673899992,5.5134,181.37,181.34,2.88]
[1755673900189,8.3534,181.37,181.32,12.51822211]
[1755673900387,2.84,181.36,181.32,15.39822211]
[1755673900587,2.84,181.36,181.32,12.51822211]
[1755673900788,2.84,181.36,181.33,2.88]
[1755673901190,5.5134,181.37,181.33,2.88]
[1755673901393,5.5134,181.37,181.34,2.88]
[1755673903293,8.3534,181.37,181.32,12.51822211]
[1755673903497,2.84,181.35,181.32,4.57162747]
[1755673904593,5.5137,181.36,181.32,7.45162747]
[1755673905188,5.514,181.35,181.32,7.45162747]
[1755673905394,2.84,181.34,181.32,4.57162747]
[1755673905690,8.354,181.35,181.32,4.57162747]
[1755673905895,2.84,181.35,181.32,4.57162747]
[1755673906100,8.3543,181.34,181.32,4.57162747]
[1755673907199,5.5141,181.35,181.32,4.57162747]
[1755673907496,5.5141,181.35,181.32,7.45162747]
[1755673907693,2.43179464,181.44,181.33,2.88]
[1755673907896,5.5132,181.38,181.33,10.08592747]
[1755673908093,2.84,181.38,181.35,2.88]
[1755673908299,8.3538,181.36,181.33,4.57162747]
[1755673908599,2.84,181.35,181.32,4.57162747]
[1755673908792,2.84,181.34,181.32,4.57162747]
[1755673909398,2.43179464,181.41,181.32,4.57162747]
[1755673909399,2.84,181.4,181.32,4.57162747]
[1755673910494,2.84,181.4,181.33,4.57162747]
[1755673910793,2.84,181.4,181.34,2.88]
[1755673910998,2.84,181.4,181.34,7.45162747]
[1755673911799,5.513,181.39,181.35,5.5139]
[1755673912100,8.353,181.39,181.36,2.88]
[1755673914198,5.513,181.39,181.35,5.5139]
[1755673914503,8.3525,181.4,181.36,2.88]
[1755673915504,5.5122,181.41,181.37,2.88]
[1755673915697,5.5122,181.41,181.38,2.88]
[1755673916998,5.5125,181.4,181.36,7.46066158]
[1755673917208,5.5125,181.4,181.37,2.88]
[1755673917704,5.5125,181.4,181.37,7.46066158]
[1755673918493,5.5128,181.39,181.37,7.46066158]
[1755673919006,2.9,181.46,181.36,4.58066158]
[1755673919199,5.5133,181.37,181.36,4.58066158]
[1755673919999,5.5133,181.37,181.34,2.93]
[1755673920000,8.4133,181.37,181.35,4.58066158]
[1755673920197,5.5133,181.37,181.35,7.51066158]
[1755673920506,8.4133,181.37,181.35,4.58066158]
[1755673921902,5.5133,181.37,181.35,4.58066158]
[1755673922602,5.5131,181.38,181.35,7.51066158]
[1755673923704,2.43179464,181.45,181.35,4.58066158]
[1755673923705,8.4134,181.37,181.35,4.58066158]
[1755673923905,2.43179464,181.45,181.35,4.58066158]
[1755673924106,5.5143,181.34,181.32,4.58066158]
[1755673924405,8.4143,181.34,181.32,4.58066158]
[1755673924806,5.5146,181.33,181.32,4.58066158]
[1755673925003,2.9,181.34,181.32,4.58066158]
[1755673925505,5.5146,181.33,181.32,4.58066158]
[1755673925709,2.9,181.33,181.31,4.58066158]
[1755673925897,2.9,181.32,181.31,4.58066158]
[1755673926098,8.4149,181.32,181.31,4.58066158]
[1755673927609,5.5152,181.31,181.3,4.58066158]
[1755673928407,5.5149,181.32,181.3,4.58066158]
[1755673928609,5.5149,181.32,181.3,7.51066158]
[1755673929114,2.9,181.35,181.3,4.58066158]
[1755673929408,2.9,181.37,181.31,2.93]
[1755673929609,2.9,181.37,181.31,7.51066158]
[1755673929909,2.9,181.34,181.3,4.58066158]
[1755673930113,2.9,181.34,181.3,7.51066158]
[1755673930614,5.5149,181.32,181.3,7.51066158]
[1755673932814,5.5149,181.32,181.3,7.51732615]
[1755673933514,5.5152,181.31,181.3,4.58732615]
[1755673933710,8.4152,181.31,181.3,4.58732615]
[1755673933910,2.9,181.34,181.27,4.58732615]
[1755673934512,2.9,181.3,181.26,4.58732615]
[1755673934706,2.9,181.28,181.26,4.58732615]
[1755673935107,8.4162,181.28,181.26,4.58732615]
[1755673935617,5.5164,181.27,181.26,4.58732615]
[1755673936714,2.9,181.28,181.26,4.58732615]
[1755673936917,8.4161,181.28,181.26,4.58732615]
[1755673937114,27.5655,181.4,181.26,2.93]
[1755673937321,5.5152,181.31,181.26,4.58732615]
[1755673937618,2.9,181.34,181.28,2.93]
[1755673938208,5.515,181.32,181.28,2.93]
[1755673938419,8.415,181.32,181.28,2.93]
[1755673939514,2.9,181.31,181.28,2.93]
[1755673939920,8.4152,181.31,181.28,2.93]
[1755673941519,2.9,181.31,181.28,2.93]
[1755673941709,5.5149,181.32,181.28,2.93]
[1755673941909,2.9,181.32,181.28,2.93]
[1755673942415,5.5152,181.31,181.28,2.93]
[1755673942716,2.9,181.32,181.28,2.93]
[1755673942914,8.4149,181.32,181.28,2.93]
[1755673943222,2.9,181.37,181.29,2.93]
[1755673943415,5.5145,181.34,181.28,10.09964032]
[1755673943611,8.4145,181.34,181.3,2.93]
[1755673943813,8.4145,181.34,181.28,4.58384032]
[1755673944015,8.4145,181.34,181.31,2.93]
[1755673944625,5.5146,181.33,181.29,4.58384032]
[1755673944922,8.4146,181.33,181.3,2.93]
[1755673945921,5.5144,181.34,181.3,2.93]
[1755673946115,2.9,181.37,181.3,2.93]
[1755673946314,2.9,181.37,181.3,7.51384032]
[1755673946825,2.9,181.44,181.31,2.93]
[1755673947021,2.9,181.44,181.32,7.51384032]
[1755673947328,5.5126,181.4,181.34,13.02784032]
[1755673947923,5.5128,181.39,181.34,7.51384032]
[1755673948125,5.5128,181.39,181.35,2.93]
[1755673948326,8.4128,181.39,181.35,2.93]
[1755673949028,2.94,181.42,181.34,4.58384032]
[1755673949427,2.94,181.38,181.35,3.03]
[1755673950527,8.4533,181.38,181.35,3.03]
[1755673950727,2.94,181.38,181.34,7.61384032]
[1755673951229,5.5133,181.37,181.34,7.61384032]
[1755673952136,8.4531,181.38,181.34,7.61384032]
[1755673952435,5.5131,181.38,181.35,3.03]
[1755673952831,5.5128,181.39,181.34,4.58384032]
[1755673953032,5.5128,181.39,181.36,3.03]
[1755673953531,8.4528,181.39,181.36,3.03]
[1755673955635,2.94,181.37,181.34,4.58384032]
[1755673955838,2.94,181.36,181.33,4.58384032]
[1755673956038,2.94,181.36,181.32,4.58384032]
[1755673956337,2.94,181.36,181.33,7.61384032]
[1755673956731,2.94,181.42,181.31,4.58384032]
[1755673956932,2.94,181.42,181.3,4.58384032]
[1755673957133,5.5141,181.35,181.3,4.58384032]
[1755673957434,8.4541,181.35,181.31,3.03]
[1755673957828,2.94,181.35,181.32,3.03]
[1755673958635,2.43179464,181.43,181.32,3.03]
[1755673958835,2.94,181.38,181.32,3.03]
[1755673959434,2.43179464,181.42,181.32,3.03]
[1755673959641,2.94,181.41,181.32,3.03]
[1755673960041,5.5137,181.36,181.32,3.03]
[1755673960244,8.4537,181.36,181.32,3.03]
[1755673960438,8.4537,181.36,181.31,10.09894032]
[1755673960638,8.4537,181.36,181.33,3.03]
[1755673960942,2.94,181.36,181.33,3.03]
[1755673961336,8.4537,181.36,181.33,3.03]
[1755673962438,5.5134,181.37,181.32,4.58384032]
[1755673962645,5.5134,181.37,181.33,3.03]
[1755673963038,8.4534,181.37,181.33,3.03]
[1755673963233,5.5137,181.36,181.33,3.03]
[1755673963446,2.94,181.35,181.32,4.58384032]
[1755673963743,2.94,181.35,181.32,7.61384032]
[1755673964545,5.5137,181.36,181.33,3.03]
[1755673964938,8.4537,181.36,181.33,3.03]
[1755673965546,2.94,181.46,181.34,3.03]
[1755673965743,2.43179464,181.45,181.34,7.61384032]
[1755673965945,2.94,181.44,181.34,13.12814032]
[1755673966144,8.453,181.39,181.35,3.03]
[1755673966335,8.453,181.39,181.35,5.5139]
[1755673966541,5.5126,181.4,181.37,3.03]
[1755673966740,8.4526,181.4,181.37,3.03]
[1755673967145,2.94,181.39,181.35,10.09774032]
[1755673967346,2.94,181.39,181.36,3.03]
[1755673967546,5.5126,181.4,181.37,3.03]
[1755673968243,8.4526,181.4,181.37,3.03]
[1755673968448,5.5122,181.41,181.38,3.03]
[1755673968649,8.4522,181.41,181.38,3.03]
[1755673968852,2.94,181.4,181.36,10.09744032]
[1755673969249,2.94,181.4,181.37,3.03]
[1755673969744,8.4524,181.4,181.37,3.03]
[1755673970947,135.36,181.46,181.35,4.58384032]
[1755673970948,8.4528,181.39,181.35,4.58384032]
[1755673971148,2.94,181.37,181.34,4.58384032]
[1755673971548,2.43179464,181.44,181.34,7.61384032]
[1755673971549,2.94,181.43,181.34,7.61384032]
[1755673972351,2.94,181.43,181.34,13.12804032]
[1755673972751,5.513,181.39,181.34,10.09804032]
[1755673972952,8.453,181.39,181.35,3.03]
[1755673973349,8.453,181.39,181.36,3.03]
[1755673974157,2.94,181.39,181.36,3.03]
[1755673975657,2.94,181.43,181.34,4.58384032]
[1755673976560,5.5132,181.38,181.34,4.58384032]
[1755673976751,8.4532,181.38,181.34,7.61384032]
[1755673978159,2.94,181.43,181.33,4.58384032]
[1755673978456,2.94,181.4,181.31,4.58384032]
[1755673978654,5.514,181.35,181.31,4.58384032]
[1755673978952,8.454,181.35,181.31,7.66384032]
[1755673980152,5.514,181.35,181.31,7.66384032]
[1755673980353,2.94,181.34,181.31,7.66384032]
[1755673980654,2.94,181.35,181.31,7.66384032]
[1755673980850,2.43179464,181.41,181.31,7.66384032]
[1755673981056,2.94,181.34,181.31,7.66384032]
[1755673981963,2.94,181.34,181.31,4.58384032]
[1755673982162,2.94,181.31,181.28,3.08]
[1755673982357,2.94,181.37,181.27,124.510556]
[1755673982659,5.5143,181.34,181.3,5.5154]
[1755673982858,2.94,181.37,181.3,5.5154]
[1755673983068,2.94,181.37,181.3,10.09924032]
[1755673983363,5.514,181.35,181.31,5.515]
[1755673983566,5.514,181.35,181.32,3.08]
[1755673983766,2.94,181.35,181.32,3.08]
[1755673984164,2.94,181.34,181.3,3.08]
[1755673984468,2.94,181.37,181.29,4.58384032]
[1755673984662,5.5154,181.31,181.28,4.58384032]
[1755673984863,8.4554,181.31,181.28,4.58384032]
[1755673986263,2.94,181.3,181.28,4.58384032]
[1755673986461,8.4556,181.3,181.28,4.58384032]
[1755673986658,2.43179464,181.35,181.27,119.92671568]
[1755673986866,2.94,181.28,181.27,119.92671568]
[1755673987568,8.4561,181.28,181.26,4.58384032]
[1755673987769,2.94,181.27,181.23,7.66384032]
[1755673988262,8.4565,181.27,181.23,7.66384032]
[1755673988666,2.94,181.27,181.23,7.66384032]
[1755673989568,8.4564,181.27,181.23,7.66384032]
[1755673990467,8.4564,181.27,181.23,3.08]
[1755673991164,2.94,181.27,181.23,3.08]
[1755673991359,2.94,181.27,181.24,3.08]
[1755673992271,5.5158,181.3,181.23,3.08]
[1755673992572,2.94,181.31,181.23,3.08]
[1755673993064,2.94,181.31,181.23,7.66384032]
[1755673993264,2.94,181.34,181.24,3.08]
[1755673993463,2.94,181.34,181.24,7.66384032]
[1755673993665,8.4545,181.34,181.28,3.08]
[1755673996170,5.5145,181.34,181.27,5.5163]
[1755673996370,2.94,181.33,181.26,5.5166]
[1755673997160,5.5151,181.32,181.26,5.5166]
[1755673999274,5.5151,181.32,181.25,13.18074032]
[1755673999468,2.94,181.33,181.25,13.18074032]
[1755674000376,2.94,181.33,181.26,5.5167]
[1755674000672,2.94,181.33,181.27,3.08]
[1755674001173,5.515,181.32,181.25,10.10064032]
[1755674001373,2.94,181.31,181.28,3.08]
[1755674001574,2.94,181.31,181.25,7.66384032]
[1755674001776,2.94,181.31,181.25,3.08]
[1755674001968,2.94,181.29,181.25,3.08]
[1755674002173,2.94,181.28,181.25,3.08]
[1755674002371,11.025,181.4,181.24,4.58384032]
[1755674002575,2.94,181.34,181.26,3.08]
[1755674003674,8.4543,181.34,181.27,5.5161]
[1755674003876,8.4543,181.34,181.28,3.08]
[1755674004274,8.4543,181.34,181.28,8.596]
[1755674005878,5.514,181.35,181.31,3.08]
[1755674006076,2.94,181.35,181.3,3.08]
[1755674006278,5.5133,181.38,181.31,5.5149]
[1755674007176,8.4533,181.38,181.31,5.5149]
[1755674007483,2.94,181.38,181.3,8.5954]
[1755674008386,5.5134,181.37,181.31,5.5151]
[1755674009485,5.5134,181.37,181.3,8.5954]
[1755674009684,8.5637,181.36,181.3,8.5954]
[1755674010084,8.5637,181.36,181.3,3.08]
[1755674010980,5.514,181.35,181.29,7.94749464]
[1755674011180,8.564,181.35,181.31,2.96]
[1755674011785,3.05,181.35,181.31,2.96]
[1755674011981,3.05,181.35,181.29,7.94749464]
[1755674012186,3.05,181.35,181.31,2.96]
[1755674012382,370.6,181.41,181.31,2.96]
[1755674012587,3.05,181.34,181.31,2.96]